lending/lending_fUSD_20241007
["ID","MTS","AMOUNT","RATE_DAILY","PERIOD"]
[340001895,1728313838793,-1000.0,0.00012329,2]
[340001896,1728313838802,-1000.0,0.00012329,2]
[340001898,1728313838812,-454.0,0.00012329,2]
[340001899,1728313838822,-580.07,0.00012408,2]
[340001900,1728313838831,-174.25,0.00012445,2]
[340001901,1728313838841,-170.21,0.00012445,2]
[340001902,1728313838853,-167.25,0.00012449,2]
[340001903,1728313838863,-291.38063738,0.000125,2]
[340001905,1728313838872,-522.03,0.00012603,2]
[340001907,1728313838882,-13794.55017605,0.00012666,2]
[340001908,1728313838891,-500.0,0.00012894,2]
[340001909,1728313838901,-541.99,0.00012964,2]
[340001910,1728313838910,-300.0,0.00013,2]
[340001911,1728313838919,-25181.21701096,0.0001302,2]
[340001912,1728313838930,-435.0,0.00013046,2]
[340001913,1728313838940,-435.98728326,0.00013144,2]
[340001914,1728313838949,-522.03,0.00013151,2]
[340001915,1728313838958,-2000.0,0.00013154,2]
[340001916,1728313838968,-200.0,0.00013154,2]
[340001917,1728313838977,-511.8498062,0.00013174,2]
[340001918,1728313838987,-200.0,0.00013174,2]
[340001919,1728313838998,-430.69189831,0.00013174,2]
[340001920,1728313839008,-389.05385113,0.00013285,2]
[340001921,1728313839017,-174.25,0.00013472,2]
[340001922,1728313839027,-1000.0,0.00013553,2]
[340001923,1728313839037,-190.84,0.00013666,2]
[340001924,1728313839046,-200.0,0.00013699,2]
[340001925,1728313839056,-580.07,0.00013786,2]
[340001926,1728313839065,-1231.55,0.00013973,2]
[340001927,1728313839075,-5358.15730304,0.000144,2]
[340001928,1728313839084,-1582.9,0.00014482,2]
[340001929,1728313839094,-7903.9890281,0.00014496,2]
[340001930,1728313839104,-174.25,0.00014499,2]
[340001931,1728313839113,-170.21,0.00014499,2]
[340001932,1728313839122,-147328.50484095,0.000145,3]
[340001933,1728313839132,-174.19682027,0.00014526,2]
[340001934,1728313839141,-1000.0,0.00014908,2]
[340001935,1728313839152,-1369.0,0.00015,2]
[340001936,1728313839161,-353.0,0.00015,2]
[340001937,1728313839171,-350.0,0.00015,2]
[340001938,1728313839180,-272.998,0.00015106,2]
[340001939,1728313839191,-1149.0,0.00015106,2]
[340001940,1728313839200,-13514.0,0.00015106,2]
[340001941,1728313839209,-5877.0,0.00015106,2]
[340001942,1728313839218,-1084.853,0.00015106,2]
[340001943,1728313839228,-580.07,0.00015165,2]
[340001944,1728313839237,-541.99,0.00015228,2]
[340001945,1728313839247,-227.0,0.000154,2]
[340001946,1728313839257,-171.2,0.00015411,2]
[340001947,1728313839266,-159.59588203,0.00015602,2]
[340001948,1728313839276,-150.0,0.00015692,2]
[340001949,1728313839285,-150.0,0.00015696,2]
[340001950,1728313839295,-150.0,0.00015697,2]
[340001951,1728313839304,-150.0,0.00015698,2]
[340001952,1728313839314,-150.0,0.00015702,2]
[340001953,1728313839324,-150.0,0.00015704,2]
[340001954,1728313839333,-150.0,0.00015715,2]
[340001955,1728313839343,-150.0,0.00015718,2]
[340001956,1728313839353,-150.0,0.00015719,2]
[340001957,1728313839362,-150.0,0.00015721,2]
[340001958,1728313839372,-150.0,0.00015723,2]
[340001959,1728313839382,-491.56953866,0.00015729,2]
[340001960,1728313839391,-150.0,0.0001573,2]
[340001961,1728313839401,-150.0,0.00015731,2]
[340001962,1728313839411,-150.0,0.00015733,2]
[340001964,1728313839420,-150.0,0.00015736,2]
[340001966,1728313839429,-587.0,0.00015737,2]
[340001968,1728313839438,-150.0,0.00015737,2]
[340001970,1728313839448,-150.0,0.0001574,2]
[340001972,1728313839458,-150.0,0.00015747,2]
[340001974,1728313839468,-150.0,0.00015748,2]
[340001976,1728313839477,-1500.0,0.00015749,2]
[340001978,1728313839487,-150.0,0.00015752,2]
[340001980,1728313839499,-150.0,0.00015756,2]
[340001982,1728313839508,-150.0,0.00015759,2]
[340001984,1728313839519,-150.0,0.00015761,2]
[340001986,1728313839528,-150.0,0.00015768,2]
[340001988,1728313839538,-150.0,0.00015768,2]
[340001990,1728313839548,-150.0,0.00015769,2]
[340001991,1728313839557,-150.0,0.0001577,2]
[340001992,1728313839567,-150.0,0.00015772,2]
[340001993,1728313839576,-150.0,0.00015774,2]
[340001994,1728313839586,-150.0,0.0001578,2]
[340001995,1728313839595,-150.0,0.00015783,2]
[340001996,1728313839605,-150.0,0.00015784,2]
[340001997,1728313839614,-150.0,0.00015785,2]
[340001998,1728313839623,-150.0,0.00015791,2]
[340001999,1728313839632,-150.0,0.00015793,2]
[340002000,1728313839642,-150.0,0.00015796,2]
[340002001,1728313839651,-150.0,0.00015799,2]
[340002002,1728313839660,-150.0,0.00015802,2]
[340002003,1728313839670,-150.0,0.00015803,2]
[340002004,1728313839679,-150.0,0.00015804,2]
[340002005,1728313839689,-150.0,0.00015804,2]
[340002006,1728313839698,-150.0,0.00015808,2]
[340002007,1728313839708,-150.0,0.00015808,2]
[340002008,1728313839718,-150.0,0.00015808,2]
[340002009,1728313839727,-150.0,0.00015812,2]
[340002010,1728313839811,-1500.0,0.00015813,2]
[340002011,1728313839820,-150.0,0.00015813,2]
[340002012,1728313839830,-150.0,0.00015813,2]
[340002013,1728313839839,-150.0,0.00015814,2]
[340002014,1728313839850,-150.0,0.00015815,2]
[340002015,1728313839859,-150.0,0.00015815,2]
[340002016,1728313839869,-150.0,0.00015816,2]
[340002017,1728313839878,-150.0,0.00015816,2]
[340002018,1728313839888,-150.0,0.00015819,2]
[340002019,1728313839897,-150.0,0.00015819,2]
[340002020,1728313839907,-150.0,0.0001582,2]
[340002021,1728313839916,-150.0,0.00015826,2]
[340002022,1728313839925,-150.0,0.00015826,2]
[340002023,1728313839935,-150.0,0.00015827,2]
[340002024,1728313839944,-150.0,0.00015833,2]
[340002025,1728313839954,-150.0,0.00015833,2]
[340002026,1728313839963,-150.0,0.00015833,2]
[340002027,1728313839972,-150.0,0.00015834,2]
[340002028,1728313839982,-150.0,0.00015838,2]
[340002029,1728313839993,-150.0,0.00015844,2]
[340002030,1728313840003,-150.0,0.00015846,2]
[340002031,1728313840012,-150.0,0.00015846,2]
[340002032,1728313840022,-150.0,0.00015847,2]
[340002033,1728313840032,-150.0,0.0001585,2]
[340002034,1728313840041,-150.0,0.00015852,2]
[340002035,1728313840050,-150.0,0.00015855,2]
[340002036,1728313840060,-150.0,0.00015857,2]
[340002038,1728313840069,-150.0,0.00015858,2]
[340002039,1728313840079,-150.0,0.00015858,2]
[340002040,1728313840090,-150.0,0.00015862,2]
[340002041,1728313840099,-150.0,0.00015864,2]
[340002042,1728313840109,-150.0,0.00015865,2]
[340002043,1728313840119,-150.0,0.00015866,2]
[340002044,1728313840128,-166.78438949,0.00015867,2]
[340002045,1728313840138,-150.0,0.00015867,2]
[340002047,1728313840147,-150.0,0.00015867,2]
[340002048,1728313840156,-151.68958605,0.00015868,2]
[340002050,1728313840166,-150.0,0.00015869,2]
[340002052,1728313840175,-1781.65688592,0.0001587,2]
[340002053,1728313840184,-150.0,0.00015872,2]
[340002054,1728313840194,-150.0,0.00015875,2]
[340002055,1728313840204,-150.0,0.00015875,2]
[340002056,1728313840214,-150.0,0.00015877,2]
[340002057,1728313840224,-150.0,0.00015884,2]
[340002058,1728313840234,-150.0,0.00015887,2]
[340002059,1728313840246,-150.0,0.00015891,2]
[340002060,1728313840255,-150.0,0.00015893,2]
[340002061,1728313840266,-150.0,0.00015898,2]
[340002062,1728313840276,-150.0,0.00015898,2]
[340002063,1728313840286,-150.0,0.00015898,2]
[340002064,1728313840295,-150.0,0.00015906,2]
[340002065,1728313840305,-150.0,0.00015909,2]
[340002066,1728313840314,-1500.0,0.0001591,2]
[340002067,1728313840323,-150.0,0.0001591,2]
[340002068,1728313840333,-153.71421815,0.00015917,2]
[340002069,1728313840342,-150.0,0.00015917,2]
[340002070,1728313840352,-150.0,0.0001592,2]
[340002071,1728313840361,-1500.0,0.00015925,2]
[340002072,1728313840371,-150.0,0.00015925,2]
[340002073,1728313840380,-150.0,0.00015927,2]
[340002074,1728313840390,-1500.0,0.00015931,2]
[340002075,1728313840400,-150.0,0.00015933,2]
[340002076,1728313840409,-150.0,0.00015933,2]
[340002077,1728313840418,-150.0,0.00015934,2]
[340002078,1728313840427,-150.0,0.0001594,2]
[340002079,1728313840437,-1500.0,0.00015942,2]
[340002080,1728313840446,-150.0,0.00015946,2]
[340002081,1728313840456,-150.0,0.00015947,2]
[340002082,1728313840465,-150.0,0.00015949,2]
[340002083,1728313840475,-150.0,0.00015958,2]
[340002084,1728313840484,-150.0,0.00015959,2]
[340002085,1728313840496,-150.0,0.00015959,2]
[340002086,1728313840506,-150.0,0.00015964,2]
[340002087,1728313840515,-1500.0,0.00016,2]
[340002088,1728313840525,-1500.0,0.00016,2]
[340002089,1728313840534,-1500.0,0.00016,2]
[340002090,1728313840543,-1816.94,0.00016,2]
[340002091,1728313840553,-1000.0,0.00016263,2]
[340002092,1728313840563,-195.6,0.00016438,2]
[340002093,1728313840572,-580.07,0.00016544,2]
[340002094,1728313840582,-400.0,0.00017,2]
[340002095,1728313840592,-541.99,0.00017492,2]
[340002096,1728313840601,-158.24460764,0.000175,2]
[340002097,1728313840611,-150.0,0.00018106,2]
[340002098,1728313840620,-1058.571,0.00018106,2]
[340002099,1728313840630,-13514.0,0.00018106,2]
[340002100,1728313840639,-2116.03,0.00018106,2]
[340002101,1728313840648,-639.909,0.00018155,2]
[340002102,1728313840657,-1297.0,0.00018155,2]
[340002103,1728313840666,-452.984,0.00018155,2]
[340002104,1728313840676,-822.394,0.00018155,2]
[340002105,1728313840685,-208.421,0.00018155,2]
[340002106,1728313840695,-278.223,0.00018155,2]
[340002107,1728313840704,-604.513,0.00018155,2]
[340002108,1728313840713,-934.0,0.00018155,2]
[340002109,1728313840722,-606.255,0.00018155,2]
[340002110,1728313840731,-1906.0,0.00018155,2]
[340002111,1728313840745,-3353.0,0.00018155,2]
[340002112,1728313840754,-808.0,0.00018155,2]
[340002113,1728313840763,-1910.0,0.00018155,2]
[340002114,1728313840772,-7903.9890281,0.00018192,2]
[340002115,1728313840782,-10000.0,0.0001875,2]
[340002116,1728313840791,-450.0,0.00019,2]
[340002117,1728313840800,-541.99,0.00019756,2]
[340002118,1728313840809,-195.6,0.00020548,2]
[340002119,1728313840818,-166.78438949,0.00020567,2]
[340002120,1728313840828,-156.19,0.00020653,2]
[340002121,1728313840837,-500.0,0.00021,2]
[340002122,1728313840846,-150.0,0.00021106,2]
[340002123,1728313840859,-976.789,0.00021106,2]
[340002124,1728313840869,-811.0,0.00021155,2]
[340002125,1728313840878,-150.0,0.00021155,2]
[340002126,1728313840887,-559.0,0.00021155,2]
[340002127,1728313840897,-934.0,0.00021155,2]
[340002128,1728313840906,-554.0,0.00021155,2]
[340002129,1728313840915,-1906.0,0.00021155,2]
[340002130,1728313840924,-3353.0,0.00021155,2]
[340002131,1728313840934,-808.0,0.00021155,2]
[340002132,1728313840943,-1910.0,0.00021155,2]
[340002133,1728313840952,-7903.9890281,0.00021889,2]
[340002134,1728313840961,-1000.0,0.0002197,2]
[340002135,1728313840970,-91215.06735488,0.00022,2]
[340002136,1728313840979,-541.99,0.0002202,2]
[340002137,1728313840989,-158.9,0.00022137,30]
[340002138,1728313841001,-550.0,0.00023,2]
[340002139,1728313841010,-158.24460764,0.000241,2]
[340002148,1728313841090,-150.0,0.00024106,2]
[340002150,1728313841100,-559.0,0.00024155,2]
[340002152,1728313841110,-248.37,0.00024155,2]
[340002154,1728313841120,-554.0,0.00024155,2]
[340002156,1728313841129,-1904.0,0.00024155,2]
[340002157,1728313841138,-1494.719,0.00024155,2]
[340002159,1728313841147,-808.0,0.00024155,2]
[340002160,1728313841157,-1910.0,0.00024155,2]
[340002161,1728313841166,-541.99,0.00024284,2]
[340002162,1728313841175,-261.91354368,0.0002429,7]
[340002163,1728313841184,-195.6,0.00024658,2]
[340002164,1728313841194,-158.9,0.00024721,30]
[340002165,1728313841203,-600.0,0.00025,2]
[340002166,1728313841212,-166.78438949,0.00025267,2]
[340002167,1728313841221,-7903.9890281,0.00025585,2]
[340002168,1728313841230,-500.0,0.00025633,120]
[340002169,1728313841240,-600.175,0.00026479,13]
[340002170,1728313841251,-156.561,0.00026479,13]
[340002171,1728313841261,-541.99,0.00026548,2]
[340002172,1728313841270,-3055.67662159,0.00027,7]
[340002173,1728313841279,-650.0,0.00027,2]
[340002174,1728313841288,-500.0,0.00027,2]
[340002175,1728313841297,-500.0,0.00027,2]
[340002176,1728313841306,-500.0,0.00027,2]
[340002177,1728313841315,-500.0,0.00027,2]
[340002178,1728313841323,-500.0,0.00027,2]
[340002179,1728313841332,-500.0,0.00027,2]
[340002180,1728313841341,-500.0,0.00027067,120]
[340002181,1728313841350,-805.0,0.00027155,2]
[340002182,1728313841359,-300.505,0.00027155,2]
[340002183,1728313841368,-158.9,0.00027305,30]
[340002184,1728313841377,-250.0,0.00027397,2]
[340002185,1728313841386,-151.0,0.00027507,2]
[340002186,1728313841395,-500.0,0.000285,120]
[340002187,1728313841404,-541.99,0.00028812,2]
[340002188,1728313841413,-7903.9890281,0.00029281,15]
[340002189,1728313841422,-158.9,0.00029889,30]
[340002190,1728313841431,-500.0,0.00029933,120]
[340002191,1728313841439,-166.78438949,0.00029967,2]
[340002192,1728313841449,-500.0,0.00030136,2]
[340002193,1728313841458,-1459.09,0.00030137,40]
[340002194,1728313841466,-156.19,0.00030348,2]
[340002195,1728313841475,-158.24460764,0.000307,2]
[340002196,1728313841484,-541.99,0.00031075,2]
[340002197,1728313841494,-899.17867256,0.00031241,3]
[340002198,1728313841504,-500.0,0.00031367,120]
[340002199,1728313841512,-150.0,0.00031386,120]
[340002200,1728313841523,-150.0,0.00031829,120]
[340002201,1728313841531,-4857.8840124,0.00031954,5]
[340002202,1728313841541,-8157.96920929,0.00031954,5]
[340002203,1728313841551,-162.77,0.00031963,2]
[340002204,1728313841560,-2393.99,0.00032241,63]
[340002205,1728313841568,-1511.05468507,0.00032241,2]
[340002206,1728313841577,-150.0,0.000324,2]
[340002207,1728313841587,-158.9,0.00032473,120]
[340002208,1728313841596,-500.0,0.000328,120]
[340002209,1728313841605,-750.0,0.00032876,2]
[340002210,1728313841614,-4857.8840124,0.0003288,5]
[340002211,1728313841623,-4857.8840124,0.0003289,5]
[340002212,1728313841632,-8157.96920929,0.0003289,5]
[340002213,1728313841641,-3244.74717868,0.000329,2]
[340002214,1728313841651,-1520.0,0.000329,2]
[340002215,1728313841660,-574.51596958,0.000329,2]
[340002216,1728313841669,-375.0,0.000329,2]
[340002217,1728313841678,-7903.9890281,0.00032977,15]
[340002218,1728313841687,-351.252195,0.00033,14]
[340002219,1728313841696,-541.99,0.00033339,2]
[340002220,1728313841705,-508.65245384,0.00033873,5]
[340002221,1728313841714,-508.9861151,0.00033873,5]
[340002222,1728313841723,-203.87609575,0.00033873,5]
[340002223,1728313841732,-161.09876257,0.00033873,5]
[340002224,1728313841742,-500.0,0.00033873,5]
[340002225,1728313841751,-32631.8768372,0.0003388,5]
[340002226,1728313841760,-77726.1441984,0.0003389,5]
[340002227,1728313841769,-81579.6920929,0.0003389,5]
[340002228,1728313841778,-155000.0,0.000339,60]
[340002229,1728313841788,-500.0,0.000339,5]
[340002230,1728313841797,-333.6220748,0.000339,2]
[340002231,1728313841806,-4857.8840124,0.0003396,5]
[340002232,1728313841815,-4857.8840124,0.0003397,5]
[340002233,1728313841824,-179.76,0.00034,7]
[340002234,1728313841832,-195.55,0.00034,2]
[340002235,1728313841841,-195.55,0.00034,2]
[340002236,1728313841853,-195.55,0.00034,2]
[340002237,1728313841862,-195.55,0.00034,2]
[340002238,1728313841871,-195.55,0.00034,2]
[340002239,1728313841881,-195.55,0.00034,2]
[340002240,1728313841890,-195.55,0.00034,2]
[340002241,1728313841899,-195.55,0.00034,2]
[340002242,1728313841909,-195.55,0.00034,2]
[340002243,1728313841918,-195.55,0.00034,2]
[340002244,1728313841929,-195.55,0.00034,2]
[340002245,1728313841938,-195.55,0.00034,2]
[340002246,1728313841947,-195.55,0.00034,2]
[340002247,1728313841956,-195.55,0.00034,2]
[340002248,1728313841966,-195.55,0.00034,2]
[340002249,1728313841975,-195.55,0.00034,2]
[340002250,1728313841985,-195.55,0.00034,2]
[340002251,1728313841994,-195.55,0.00034,2]
[340002252,1728313842004,-195.55,0.00034,2]
[340002253,1728313842013,-500.0,0.00034233,120]
[340002254,1728313842023,-8157.96920929,0.0003449,5]
[340002255,1728313842032,-1150.0,0.000345,120]
[340002256,1728313842042,-166.78438949,0.00034666,2]
[340002257,1728313842052,-4857.8840124,0.00034731,5]
[340002258,1728313842061,-8157.96920929,0.00034731,5]
[340002259,1728313842071,-195.55,0.00034731,2]
[340002260,1728313842081,-19431.5360496,0.0003474,5]
[340002261,1728313842090,-32631.8768372,0.0003474,5]
[340002262,1728313842100,-195.55,0.0003474,2]
[340002263,1728313842110,-195.55,0.0003474,2]
[340002264,1728313842120,-58294.6081488,0.0003475,5]
[340002265,1728313842129,-8157.96920929,0.0003475,5]
[340002266,1728313842139,-19431.5360496,0.0003476,5]
[340002267,1728313842148,-172.1218335,0.0003478,2]
[340002268,1728313842158,-1637.35909412,0.0003478,2]
[340002269,1728313842234,-447.5036509,0.0003478,2]
[340002270,1728313842245,-6138.11368624,0.0003478,2]
[340002271,1728313842255,-214.31741806,0.0003478,6]
[340002272,1728313842264,-205.0,0.0003481,2]
[340002273,1728313842274,-195.55,0.00034836,2]
[340002274,1728313842284,-24473.9076279,0.00034846,5]
[340002275,1728313842294,-195.55,0.0003485,2]
[340002276,1728313842303,-20817.0787513,0.00034856,2]
[340002277,1728313842312,-2528.1083511,0.00034856,2]
[340002278,1728313842320,-23086.34403,0.00034856,2]
[340002279,1728313842330,-4282.4418935,0.00034856,2]
[340002280,1728313842339,-8157.96920929,0.0003486,5]
[340002281,1728313842348,-256.5,0.0003487,30]
[340002282,1728313842357,-24473.9076279,0.0003487,5]
[340002283,1728313842367,-195.55,0.0003487,2]
[340002284,1728313842376,-195.55,0.0003487,2]
[340002285,1728313842385,-195.55,0.0003487,2]
[340002286,1728313842394,-195.55,0.0003487,2]
[340002287,1728313842403,-195.55,0.0003487,2]
[340002288,1728313842412,-195.55,0.0003487,2]
[340002289,1728313842421,-195.55,0.0003487,2]
[340002290,1728313842430,-195.55,0.0003487,2]
[340002291,1728313842439,-195.55,0.0003487,2]
[340002292,1728313842448,-195.55,0.0003487,2]
[340002293,1728313842457,-195.55,0.0003487,2]
[340002294,1728313842466,-195.55,0.0003487,2]
[340002295,1728313842475,-195.55,0.0003487,2]
[340002296,1728313842484,-195.55,0.0003487,2]
[340002297,1728313842496,-195.55,0.0003487,2]
[340002298,1728313842505,-195.55,0.0003487,2]
[340002299,1728313842514,-195.55,0.0003487,2]
[340002300,1728313842524,-195.55,0.0003487,2]
[340002301,1728313842532,-88056.13583486,0.0003488,2]
[340002302,1728313842833,-3843.61361225,0.0003488,2]
[340002303,1728313842851,-1922.01009,0.0003488,2]
[340002304,1728313842868,-1152.06794487,0.0003488,2]
[340002305,1728313842884,-522.54170576,0.0003488,2]
[340002306,1728313842900,-11397.85447334,0.0003488,2]
[340002307,1728313842916,-5974.7917284,0.0003488,2]
[340002308,1728313842933,-800.67916805,0.0003488,2]
[340002309,1728313842954,-135717.78159402,0.0003488,2]
[340002310,1728313842970,-459.01463883,0.0003488,2]
[340002311,1728313842986,-5878.35106938,0.0003488,2]
[340002312,1728313843004,-19099.21,0.0003488,2]
[340002313,1728313843019,-6057.23386798,0.0003488,2]
[340002314,1728313843035,-13271.56862149,0.0003488,2]
[340002315,1728313843052,-24654.16122351,0.0003488,2]
[340002316,1728313843068,-22243.24876,0.0003488,2]
[340002317,1728313843083,-1044.56629681,0.0003488,2]
[340002318,1728313843099,-7438.13842549,0.0003488,2]
[340002319,1728313843115,-31499.12898451,0.0003488,2]
[340002320,1728313843131,-1720.75393469,0.0003488,2]
[340002321,1728313843147,-584.12370404,0.0003488,2]
[340002322,1728313843161,-12796.0661975,0.0003488,2]
[340002323,1728313843172,-3353.94450525,0.0003488,2]
[340002324,1728313843184,-667.24633407,0.0003488,2]
[340002325,1728313843199,-632.6228459,0.0003488,2]
[340002326,1728313843210,-5295.46180935,0.0003488,2]
[340002327,1728313843221,-6302.4270289,0.0003488,2]
[340002328,1728313843232,-562.55848392,0.0003488,2]
[340002329,1728313843243,-794.86802,0.0003488,2]
[340002340,1728313843881,-118.0246021,0.00011494,2]
[340002341,1728313843902,-381.9653979,0.00011494,2]
[340002342,1728313843911,-150.0,0.00015718,2]
[340002343,1728313843919,-16.92752177,0.00015725,2]
[340002344,1728313843967,-150.0,0.00015679,2]
[340002345,1728313843976,-133.07247823,0.00015725,2]
[340002346,1728313843985,-150.0,0.00015726,2]
[340002347,1728313843994,-150.0,0.00015727,2]
[340002348,1728313844003,-150.0,0.00015732,2]
[340002349,1728313844012,-150.0,0.0001574,2]
[340002350,1728313844021,-150.0,0.00015753,2]
[340002351,1728313844030,-150.0,0.00015758,2]
[340002352,1728313844039,-150.0,0.00015763,2]
[340002353,1728313844048,-150.0,0.00015765,2]
[340002354,1728313844060,-79.70768765,0.0001577,2]
[340002355,1728313844071,-70.29231235,0.0001577,2]
[340002356,1728313844080,-150.0,0.00015782,2]
[340002357,1728313844089,-150.0,0.00015786,2]
[340002358,1728313844099,-35.99768665,0.00015786,2]
[340002359,1728313844114,-150.0,0.00015703,2]
[340002360,1728313844123,-114.00231335,0.00015786,2]
[340002361,1728313844132,-36.05790865,0.00015794,2]
[340002362,1728313844379,-1455.93177655,0.0001497,2]
[340002363,1728313844389,-150.0,0.00015687,2]
[340002364,1728313844399,-150.0,0.00015708,2]
[340002365,1728313844410,-150.0,0.00015722,2]
[340002366,1728313844424,-150.0,0.00015725,2]
[340002367,1728313844434,-150.0,0.00015725,2]
[340002368,1728313844446,-150.0,0.00015726,2]
[340002369,1728313844456,-150.0,0.00015732,2]
[340002370,1728313844465,-150.0,0.00015732,2]
[340002371,1728313844474,-150.0,0.00015734,2]
[340002372,1728313844484,-150.0,0.00015747,2]
[340002373,1728313844493,-150.0,0.00015753,2]
[340002374,1728313844509,-150.0,0.00015756,2]
[340002375,1728313844518,-150.0,0.00015777,2]
[340002376,1728313844528,-150.0,0.00015778,2]
[340002377,1728313844537,-113.94209135,0.00015794,2]
[340002378,1728313844548,-150.0,0.00015794,2]
[340002379,1728313844556,-150.0,0.00015796,2]
[340002380,1728313844566,-150.0,0.00015799,2]
[340002381,1728313844575,-150.0,0.00015802,2]
[340002382,1728313844585,-150.0,0.00015813,2]
[340002383,1728313844594,-150.0,0.00015815,2]
[340002384,1728313844603,-150.0,0.00015815,2]
[340002385,1728313844613,-150.0,0.00015815,2]
[340002386,1728313844623,-150.0,0.00015819,2]
[340002387,1728313844632,-150.0,0.0001582,2]
[340002388,1728313844642,-150.0,0.00015821,2]
[340002389,1728313844651,-150.0,0.00015823,2]
[340002390,1728313844661,-150.0,0.00015826,2]
[340002391,1728313844671,-150.0,0.00015827,2]
[340002392,1728313844680,-150.0,0.00015829,2]
[340002393,1728313844690,-150.0,0.00015842,2]
[340002394,1728313844699,-150.0,0.00015842,2]
[340002395,1728313844709,-150.0,0.00015845,2]
[340002396,1728313844718,-150.0,0.00015848,2]
[340002397,1728313844728,-150.0,0.00015848,2]
[340002398,1728313844737,-150.0,0.00015854,2]
[340002399,1728313844747,-150.0,0.00015856,2]
[340002400,1728313844756,-150.0,0.00015857,2]
[340002401,1728313844766,-150.0,0.00015858,2]
[340002402,1728313844775,-150.0,0.00015872,2]
[340002403,1728313844785,-150.0,0.00015874,2]
[340002404,1728313844794,-150.0,0.00015877,2]
[340002405,1728313844804,-150.0,0.0001588,2]
[340002406,1728313844813,-150.0,0.00015885,2]
[340002407,1728313844823,-150.0,0.00015891,2]
[340002408,1728313844833,-150.0,0.00015892,2]
[340002409,1728313844843,-150.0,0.00015893,2]
[340002410,1728313844856,-150.0,0.00015894,2]
[340002411,1728313844865,-150.0,0.00015902,2]
[340002412,1728313844875,-150.0,0.00015906,2]
[340002413,1728313844886,-150.0,0.00015907,2]
[340002414,1728313844895,-150.0,0.0001591,2]
[340002415,1728313844905,-150.0,0.00015912,2]
[340002416,1728313844915,-150.0,0.00015919,2]
[340002417,1728313844924,-150.0,0.00015923,2]
[340002418,1728313844933,-150.0,0.00015932,2]
[340002419,1728313844944,-150.0,0.00015933,2]
[340002420,1728313844953,-150.0,0.00015936,2]
[340002421,1728313844963,-150.0,0.00015941,2]
[340002422,1728313844973,-150.0,0.00015941,2]
[340002423,1728313844982,-150.0,0.00015944,2]
[340002424,1728313844992,-936.8481321,0.0001597,2]
[340002425,1728313845011,-63.1518679,0.0001597,2]
[340002426,1728313845021,-150.0,0.00016913,2]
[340002427,1728313845031,-610.46717008,0.00017524,2]
[340002428,1728313845041,-129.51843202,0.00019604,2]
[340002442,1728313846355,-2560.06082184,0.000109,2]
[340002443,1728313846395,-4939.93917816,0.000109,2]
[340002444,1728313846404,-20.48156798,0.00019604,2]
[340002445,1728313846414,-150.0,0.00022943,2]
[340002446,1728313846423,-150.0,0.00025393,2]
[340002447,1728313846433,-150.0,0.00025549,2]
[340002448,1728313846443,-9.73139741,0.00025551,2]
[340002449,1728313846527,-140.26860259,0.00025551,2]
[340002450,1728313846536,-1122.15060457,0.00034084,5]
[340002451,1728313846546,-467006.61123576,0.0003488,2]